[Event "Early-Titled-Tuesday-Blitz-May-28-2024"]
[Site "Chess.com"]
[Date "2024.05.28"]
[Round "5"]
[White "RedFirePanda"]
[Black "RantomOpening"]
[Result "1-0"]
[WhiteElo "2447"]
[BlackElo "2564"]
[TimeControl "180+1"]
[EndTime "8:53:53 PDT"]
[Termination "RedFirePanda won by resignation"]

1. d4 {[%clk 0:03:00.9]} 1... d5 {[%clk 0:02:55.7]} 2. Bf4 {[%clk 0:03:00.7]}
2... Nf6 {[%clk 0:02:54.9]} 3. e3 {[%clk 0:02:59.7]} 3... e6 {[%clk 0:02:55.5]}
4. Nd2 {[%clk 0:02:59.6]} 4... Bd6 {[%clk 0:02:55.8]} 5. Bxd6 {[%clk 0:02:59.4]}
5... Qxd6 {[%clk 0:02:56]} 6. c3 {[%clk 0:02:59.9]} 6... O-O {[%clk 0:02:56.1]}
7. Ngf3 {[%clk 0:03:00.3]} 7... Nbd7 {[%clk 0:02:56.5]} 8. Bd3 {[%clk
0:03:00.8]} 8... c5 {[%clk 0:02:56.9]} 9. O-O {[%clk 0:03:00.7]} 9... b5 {[%clk
0:02:56.6]} 10. Bxb5 {[%clk 0:02:59.5]} 10... Rb8 {[%clk 0:02:56.1]} 11. Ba4
{[%clk 0:02:40.1]} 11... Rxb2 {[%clk 0:02:55.2]} 12. Bb3 {[%clk 0:02:40.5]}
12... c4 {[%clk 0:02:54.4]} 13. Bxc4 {[%clk 0:02:40.8]} 13... dxc4 {[%clk
0:02:52.9]} 14. Nxc4 {[%clk 0:02:41.7]} 14... Qb8 {[%clk 0:02:53.1]} 15. Nxb2
{[%clk 0:02:40.6]} 15... Qxb2 {[%clk 0:02:54]} 16. Qb3 {[%clk 0:02:35.9]} 16...
Qe2 {[%clk 0:02:50.4]} 17. c4 {[%clk 0:02:12.1]} 17... Nb6 {[%clk 0:02:48.5]}
18. Rfc1 {[%clk 0:02:07.3]} 18... Ba6 {[%clk 0:02:15.2]} 19. Rc2 {[%clk
0:02:07.3]} 19... Bxc4 {[%clk 0:02:11.2]} 20. Rxe2 {[%clk 0:02:06.7]} 20... Bxe2
{[%clk 0:02:11.5]} 21. Rc1 {[%clk 0:02:00]} 21... h6 {[%clk 0:02:10.9]} 22. Ne5
{[%clk 0:01:48.1]} 22... Ba6 {[%clk 0:02:05.8]} 23. Rc7 {[%clk 0:01:45.4]} 23...
Ra8 {[%clk 0:01:56.8]} 24. h3 {[%clk 0:01:30.7]} 24... Rf8 {[%clk 0:01:10.7]}
25. Rxa7 {[%clk 0:01:26.4]} 25... Be2 {[%clk 0:01:06.5]} 26. Qxb6 {[%clk
0:01:24.8]} 1-0

[Event "Early-Titled-Tuesday-Blitz-May-28-2024"]
[Site "Chess.com"]
[Date "2024.05.28"]
[Round "5"]
[White "HighLawView"]
[Black "Felix-Rose"]
[Result "1-0"]
[WhiteElo "2071"]
[BlackElo "2298"]
[TimeControl "180+1"]
[EndTime "8:53:54 PDT"]
[Termination "HighLawView won by resignation"]

1. e4 {[%clk 0:03:00.9]} 1... e5 {[%clk 0:02:59.4]} 2. Nf3 {[%clk 0:02:59.8]}
2... Nc6 {[%clk 0:02:59.6]} 3. Bc4 {[%clk 0:02:59.4]} 3... Nf6 {[%clk
0:02:59.6]} 4. Ng5 {[%clk 0:02:47.2]} 4... d5 {[%clk 0:02:59.2]} 5. exd5 {[%clk
0:02:43.5]} 5... Na5 {[%clk 0:02:59.5]} 6. Bb5+ {[%clk 0:02:42.2]} 6... c6
{[%clk 0:03:00.1]} 7. dxc6 {[%clk 0:02:41.9]} 7... bxc6 {[%clk 0:03:01]} 8. Bd3
{[%clk 0:02:38.1]} 8... Nd5 {[%clk 0:02:58.7]} 9. Ne4 {[%clk 0:02:22.4]} 9... f5
{[%clk 0:02:37]} 10. Nec3 {[%clk 0:02:19.8]} 10... Nf4 {[%clk 0:02:22.4]} 11.
O-O {[%clk 0:02:02.1]} 11... Nxd3 {[%clk 0:02:18.9]} 12. cxd3 {[%clk 0:02:03]}
12... Bd6 {[%clk 0:02:17.5]} 13. d4 {[%clk 0:01:52.5]} 13... exd4 {[%clk
0:02:15.1]} 14. Re1+ {[%clk 0:01:50.4]} 14... Be7 {[%clk 0:02:12.8]} 15. Ne2
{[%clk 0:01:30.7]} 15... c5 {[%clk 0:02:02.3]} 16. d3 {[%clk 0:01:30.6]} 16...
O-O {[%clk 0:01:58]} 17. Bd2 {[%clk 0:01:20.5]} 17... Nc6 {[%clk 0:01:57.2]} 18.
Na3 {[%clk 0:01:18.8]} 18... Bb7 {[%clk 0:01:50.2]} 19. Qb3+ {[%clk 0:01:18.1]}
19... Kh8 {[%clk 0:01:31.1]} 20. Qxb7 {[%clk 0:01:17.1]} 20... Ne5 {[%clk
0:01:23.9]} 21. Nf4 {[%clk 0:01:11]} 21... Qd6 {[%clk 0:01:15.6]} 22. Qd5 {[%clk
0:01:08.9]} 1-0

[Event "Early-Titled-Tuesday-Blitz-May-28-2024"]
[Site "Chess.com"]
[Date "2024.05.28"]
[Round "5"]
[White "zozik"]
[Black "Glidzhian_Gor"]
[Result "0-1"]
[WhiteElo "2326"]
[BlackElo "2549"]
[TimeControl "180+1"]
[EndTime "8:54:06 PDT"]
[Termination "Glidzhian_Gor won by resignation"]

1. d4 {[%clk 0:03:00.7]} 1... c5 {[%clk 0:02:56.4]} 2. Nf3 {[%clk 0:03:00.6]}
2... Nf6 {[%clk 0:02:20.7]} 3. g3 {[%clk 0:02:59]} 3... e6 {[%clk 0:02:19.8]} 4.
Bg2 {[%clk 0:02:59.5]} 4... d5 {[%clk 0:02:20.3]} 5. O-O {[%clk 0:03:00.1]} 5...
Be7 {[%clk 0:02:20.9]} 6. c4 {[%clk 0:02:59.3]} 6... O-O {[%clk 0:02:21.1]} 7.
cxd5 {[%clk 0:02:58.1]} 7... exd5 {[%clk 0:02:22]} 8. Nc3 {[%clk 0:02:58]} 8...
cxd4 {[%clk 0:02:21.5]} 9. Nxd4 {[%clk 0:02:57.3]} 9... Nc6 {[%clk 0:02:22.1]}
10. Bg5 {[%clk 0:02:53.8]} 10... h6 {[%clk 0:02:22]} 11. Bf4 {[%clk 0:02:54.3]}
11... Re8 {[%clk 0:02:18]} 12. Rc1 {[%clk 0:02:43.9]} 12... Bg4 {[%clk
0:02:14.9]} 13. Qd2 {[%clk 0:02:42.5]} 13... Bb4 {[%clk 0:02:08.8]} 14. Rfe1
{[%clk 0:02:01.5]} 14... Ne4 {[%clk 0:01:42]} 15. Bxe4 {[%clk 0:01:56.5]} 15...
Rxe4 {[%clk 0:01:41.6]} 16. Nxc6 {[%clk 0:01:51.5]} 16... bxc6 {[%clk
0:01:42.5]} 17. a3 {[%clk 0:01:51.7]} 17... Bxc3 {[%clk 0:01:40.2]} 18. Rxc3
{[%clk 0:01:50.9]} 18... Bd7 {[%clk 0:01:39.3]} 19. f3 {[%clk 0:01:43.5]} 19...
Re6 {[%clk 0:01:37.9]} 20. e4 {[%clk 0:01:40.6]} 20... dxe4 {[%clk 0:01:17.9]}
21. Rd1 {[%clk 0:01:39.4]} 21... exf3 {[%clk 0:01:10.4]} 22. Qxd7 {[%clk
0:01:37.1]} 22... Re1+ {[%clk 0:01:08.9]} 23. Rxe1 {[%clk 0:01:22.2]} 23... Qxd7
{[%clk 0:01:08.8]} 24. Rxf3 {[%clk 0:01:22.8]} 24... Re8 {[%clk 0:01:07.9]} 25.
Rxe8+ {[%clk 0:01:20.4]} 25... Qxe8 {[%clk 0:01:07.8]} 26. Rf2 {[%clk
0:01:20.1]} 26... Qe4 {[%clk 0:01:05.3]} 27. Rd2 {[%clk 0:01:19.1]} 27... g5
{[%clk 0:01:04.6]} 0-1

[Event "Early-Titled-Tuesday-Blitz-May-28-2024"]
[Site "Chess.com"]
[Date "2024.05.28"]
[Round "5"]
[White "MrLion3000"]
[Black "Fernando_Offermann"]
[Result "1-0"]
[WhiteElo "2775"]
[BlackElo "2471"]
[TimeControl "180+1"]
[EndTime "8:54:08 PDT"]
[Termination "MrLion3000 won by resignation"]

1. e4 {[%clk 0:03:00.9]} 1... c5 {[%clk 0:02:57.2]} 2. Nf3 {[%clk 0:03:00]} 2...
d6 {[%clk 0:02:57.4]} 3. d4 {[%clk 0:02:59.7]} 3... cxd4 {[%clk 0:02:57.6]} 4.
Nxd4 {[%clk 0:03:00.4]} 4... Nf6 {[%clk 0:02:57.9]} 5. Nc3 {[%clk 0:03:00.1]}
5... a6 {[%clk 0:02:58.4]} 6. h3 {[%clk 0:03:00.4]} 6... e6 {[%clk 0:02:57.7]}
7. g4 {[%clk 0:02:59.1]} 7... b5 {[%clk 0:02:58.1]} 8. g5 {[%clk 0:02:48.3]}
8... Nfd7 {[%clk 0:02:57.3]} 9. a3 {[%clk 0:02:47.7]} 9... Bb7 {[%clk
0:02:56.9]} 10. Bg2 {[%clk 0:02:47.7]} 10... Qc7 {[%clk 0:02:55.8]} 11. Be3
{[%clk 0:02:47.2]} 11... Nc6 {[%clk 0:02:56]} 12. f4 {[%clk 0:02:41.1]} 12...
Nb6 {[%clk 0:02:48.8]} 13. Bf2 {[%clk 0:02:15.9]} 13... Rc8 {[%clk 0:02:42.8]}
14. f5 {[%clk 0:02:08.3]} 14... Nxd4 {[%clk 0:02:34.8]} 15. Qxd4 {[%clk
0:02:05.6]} 15... Nc4 {[%clk 0:02:31.4]} 16. fxe6 {[%clk 0:02:01.9]} 16... fxe6
{[%clk 0:02:31.3]} 17. Nd1 {[%clk 0:02:02.4]} 17... e5 {[%clk 0:02:28]} 18. Qd3
{[%clk 0:02:02.3]} 18... Be7 {[%clk 0:02:26.6]} 19. h4 {[%clk 0:02:02.2]} 19...
O-O {[%clk 0:02:26.4]} 20. O-O {[%clk 0:02:02.6]} 20... Rf4 {[%clk 0:02:16.2]}
21. b3 {[%clk 0:01:48.7]} 21... Nb6 {[%clk 0:02:12.3]} 22. Ne3 {[%clk
0:01:49.2]} 22... g6 {[%clk 0:02:08.7]} 23. Bg3 {[%clk 0:01:37.6]} 23... Rxf1+
{[%clk 0:02:07.7]} 24. Rxf1 {[%clk 0:01:37.2]} 24... Qc5 {[%clk 0:01:58]} 25.
Kh2 {[%clk 0:01:34.7]} 25... Qc3 {[%clk 0:01:43.5]} 26. Qe2 {[%clk 0:01:28]}
26... Rf8 {[%clk 0:01:25.8]} 27. Rxf8+ {[%clk 0:01:23.9]} 27... Kxf8 {[%clk
0:01:26.2]} 28. Ng4 {[%clk 0:01:22.6]} 28... Bc8 {[%clk 0:01:13]} 29. Nh6 {[%clk
0:01:20.5]} 29... Be6 {[%clk 0:01:08.8]} 30. Qf2+ {[%clk 0:01:20.1]} 30... Kg7
{[%clk 0:01:08.6]} 31. Qxb6 {[%clk 0:01:20.5]} 1-0

[Event "Early-Titled-Tuesday-Blitz-May-28-2024"]
[Site "Chess.com"]
[Date "2024.05.28"]
[Round "5"]
[White "Casper"]
[Black "WolfBaoBaoLang"]
[Result "0-1"]
[WhiteElo "2500"]
[BlackElo "2091"]
[TimeControl "180+1"]
[EndTime "8:54:10 PDT"]
[Termination "WolfBaoBaoLang won by checkmate"]

1. e4 {[%clk 0:02:57.6]} 1... Nf6 {[%clk 0:03:00.9]} 2. Qe2 {[%clk 0:02:56.4]}
2... e5 {[%clk 0:02:58.8]} 3. d4 {[%clk 0:02:55.2]} 3... exd4 {[%clk 0:02:57.7]}
4. Nf3 {[%clk 0:02:52.1]} 4... Nc6 {[%clk 0:02:55.6]} 5. Bg5 {[%clk 0:02:50.5]}
5... h6 {[%clk 0:02:52.8]} 6. e5 {[%clk 0:02:47.5]} 6... Bb4+ {[%clk 0:02:44.8]}
7. c3 {[%clk 0:02:42]} 7... dxc3 {[%clk 0:02:45]} 8. exf6+ {[%clk 0:02:38.1]}
8... Kf8 {[%clk 0:02:45.1]} 9. bxc3 {[%clk 0:02:20.7]} 9... hxg5 {[%clk
0:02:27]} 10. fxg7+ {[%clk 0:02:20.1]} 10... Kxg7 {[%clk 0:02:27.1]} 11. cxb4
{[%clk 0:02:20.7]} 11... Re8 {[%clk 0:02:24]} 12. Nbd2 {[%clk 0:02:15.9]} 12...
Rxe2+ {[%clk 0:02:23.3]} 13. Bxe2 {[%clk 0:02:16.8]} 13... Qf6 {[%clk
0:02:22.3]} 14. O-O {[%clk 0:02:16.4]} 14... Nxb4 {[%clk 0:02:22.2]} 15. a3
{[%clk 0:02:08.4]} 15... Nd5 {[%clk 0:02:16.4]} 16. Bc4 {[%clk 0:02:05.1]} 16...
Nf4 {[%clk 0:01:45.6]} 17. Ne4 {[%clk 0:01:34.7]} 17... Qc6 {[%clk 0:01:39.4]}
18. Bxf7 {[%clk 0:01:28.5]} 18... Qxe4 {[%clk 0:00:53.9]} 19. Ba2 {[%clk
0:01:25.5]} 19... g4 {[%clk 0:00:51.2]} 20. Rfe1 {[%clk 0:01:14.6]} 20... Ne2+
{[%clk 0:00:50.7]} 21. Kf1 {[%clk 0:01:11.1]} 21... gxf3 {[%clk 0:00:51]} 22.
gxf3 {[%clk 0:01:12]} 22... Qxf3 {[%clk 0:00:51.4]} 23. Rxe2 {[%clk 0:01:11.3]}
23... Qh1# {[%clk 0:00:51.6]} 0-1

[Event "Early-Titled-Tuesday-Blitz-May-28-2024"]
[Site "Chess.com"]
[Date "2024.05.28"]
[Round "5"]
[White "Dexter_Dyke"]
[Black "betta2004"]
[Result "1-0"]
[WhiteElo "2460"]
[BlackElo "2585"]
[TimeControl "180+1"]
[EndTime "8:54:15 PDT"]
[Termination "Dexter_Dyke won by resignation"]

1. e4 {[%clk 0:02:56.1]} 1... e6 {[%clk 0:02:53.4]} 2. d4 {[%clk 0:02:55.8]}
2... d5 {[%clk 0:02:52]} 3. Nc3 {[%clk 0:02:56]} 3... Nf6 {[%clk 0:02:49.9]} 4.
Bg5 {[%clk 0:02:55.8]} 4... dxe4 {[%clk 0:02:50.1]} 5. Nxe4 {[%clk 0:02:55.4]}
5... Be7 {[%clk 0:02:40.5]} 6. Bxf6 {[%clk 0:02:55.5]} 6... gxf6 {[%clk
0:02:41.4]} 7. Nf3 {[%clk 0:02:55.7]} 7... a6 {[%clk 0:02:37.2]} 8. Qd2 {[%clk
0:02:54.7]} 8... b5 {[%clk 0:02:36.8]} 9. O-O-O {[%clk 0:02:52.8]} 9... Bb7
{[%clk 0:02:33.7]} 10. Ng3 {[%clk 0:02:47.8]} 10... Nd7 {[%clk 0:02:28.4]} 11.
Nh5 {[%clk 0:02:43.7]} 11... Nb6 {[%clk 0:02:10.9]} 12. Ng7+ {[%clk 0:02:41.1]}
12... Kf8 {[%clk 0:02:09]} 13. Qh6 {[%clk 0:02:41.1]} 13... Kg8 {[%clk
0:02:09.7]} 14. Nh5 {[%clk 0:02:40.8]} 14... Qf8 {[%clk 0:02:09.9]} 15. Nxf6+
{[%clk 0:02:35.6]} 15... Bxf6 {[%clk 0:02:10.8]} 16. Qxf6 {[%clk 0:02:36.1]}
16... Nd5 {[%clk 0:02:10.9]} 17. Qh4 {[%clk 0:02:27.8]} 17... Qb4 {[%clk
0:02:00.7]} 18. Ne5 {[%clk 0:02:08.4]} 18... Qa4 {[%clk 0:01:49.7]} 19. Rd3
{[%clk 0:01:41.4]} 19... Nb4 {[%clk 0:01:29.5]} 20. Rg3+ {[%clk 0:01:38.9]}
20... Kf8 {[%clk 0:01:29.5]} 21. Bd3 {[%clk 0:01:15.7]} 21... Qxa2 {[%clk
0:00:48.2]} 22. Qf6 {[%clk 0:01:10.6]} 22... Qa1+ {[%clk 0:00:43.3]} 23. Kd2
{[%clk 0:01:10.5]} 1-0

[Event "Early-Titled-Tuesday-Blitz-May-28-2024"]
[Site "Chess.com"]
[Date "2024.05.28"]
[Round "5"]
[White "Pragmatist237"]
[Black "jup1978"]
[Result "0-1"]
[WhiteElo "2197"]
[BlackElo "2416"]
[TimeControl "180+1"]
[EndTime "8:54:16 PDT"]
[Termination "jup1978 won by resignation"]

1. d4 {[%clk 0:02:51.7]} 1... d5 {[%clk 0:02:59.1]} 2. Nf3 {[%clk 0:02:50.8]}
2... e6 {[%clk 0:02:58.5]} 3. c4 {[%clk 0:02:50.9]} 3... Nf6 {[%clk 0:02:58.8]}
4. Nc3 {[%clk 0:02:49.9]} 4... a6 {[%clk 0:02:58]} 5. cxd5 {[%clk 0:02:48.7]}
5... exd5 {[%clk 0:02:55.6]} 6. Bg5 {[%clk 0:02:48.7]} 6... Be6 {[%clk
0:02:55.5]} 7. e3 {[%clk 0:02:48.4]} 7... Nbd7 {[%clk 0:02:54.7]} 8. Bd3 {[%clk
0:02:46.5]} 8... Bd6 {[%clk 0:02:54.9]} 9. O-O {[%clk 0:02:46.5]} 9... h6 {[%clk
0:02:55.3]} 10. Bh4 {[%clk 0:02:45.9]} 10... c6 {[%clk 0:02:50.7]} 11. Bg3
{[%clk 0:02:36.6]} 11... Bxg3 {[%clk 0:02:48.9]} 12. hxg3 {[%clk 0:02:36]} 12...
O-O {[%clk 0:02:49.1]} 13. Rc1 {[%clk 0:02:08.3]} 13... c5 {[%clk 0:02:38.1]}
14. Bb1 {[%clk 0:02:02.5]} 14... Rc8 {[%clk 0:02:33.3]} 15. Ne5 {[%clk
0:01:58.6]} 15... cxd4 {[%clk 0:02:30.8]} 16. exd4 {[%clk 0:01:56.5]} 16... Qb6
{[%clk 0:02:11.5]} 17. Qd3 {[%clk 0:01:23.8]} 17... Rc7 {[%clk 0:02:08]} 18.
Nxd7 {[%clk 0:00:57.8]} 18... Rxd7 {[%clk 0:02:08.9]} 19. Na4 {[%clk 0:00:58.1]}
19... Qb4 {[%clk 0:01:59.9]} 20. Nc5 {[%clk 0:00:57.7]} 20... Re7 {[%clk
0:01:56.9]} 21. b3 {[%clk 0:00:44.4]} 21... a5 {[%clk 0:01:54.3]} 22. a3 {[%clk
0:00:32.3]} 22... Qxa3 {[%clk 0:01:49.9]} 23. Rfe1 {[%clk 0:00:19.7]} 23... b6
{[%clk 0:01:46.9]} 24. Nxe6 {[%clk 0:00:16]} 24... Rxe6 {[%clk 0:01:47.4]} 25.
Rxe6 {[%clk 0:00:15.8]} 25... Qxc1+ {[%clk 0:01:46.9]} 0-1

[Event "Early-Titled-Tuesday-Blitz-May-28-2024"]
[Site "Chess.com"]
[Date "2024.05.28"]
[Round "5"]
[White "CarlosjPineror"]
[Black "Attacker_2006"]
[Result "1-0"]
[WhiteElo "2737"]
[BlackElo "2545"]
[TimeControl "180+1"]
[EndTime "8:54:18 PDT"]
[Termination "CarlosjPineror won by resignation"]

1. e4 {[%clk 0:03:00.9]} 1... c5 {[%clk 0:02:48.5]} 2. Nf3 {[%clk 0:03:00.3]}
2... Nf6 {[%clk 0:02:47.7]} 3. e5 {[%clk 0:02:59.4]} 3... Nd5 {[%clk 0:02:47.2]}
4. b3 {[%clk 0:03:00.3]} 4... d6 {[%clk 0:02:43.3]} 5. exd6 {[%clk 0:02:51.4]}
5... Qxd6 {[%clk 0:02:41.7]} 6. Bb2 {[%clk 0:02:48.6]} 6... Nc6 {[%clk
0:02:41.6]} 7. Bb5 {[%clk 0:02:47.3]} 7... Bg4 {[%clk 0:02:41.5]} 8. h3 {[%clk
0:02:43.4]} 8... Bh5 {[%clk 0:02:41.1]} 9. g4 {[%clk 0:02:41.4]} 9... Bg6 {[%clk
0:02:41.4]} 10. Ne5 {[%clk 0:02:40.3]} 10... f6 {[%clk 0:02:41.8]} 11. Nxc6
{[%clk 0:02:38.2]} 11... bxc6 {[%clk 0:02:42.5]} 12. Bc4 {[%clk 0:02:32.1]}
12... Be4 {[%clk 0:02:40.2]} 13. Rf1 {[%clk 0:01:54.1]} 13... Bg2 {[%clk
0:02:38.9]} 14. Nc3 {[%clk 0:01:50.6]} 14... Bxf1 {[%clk 0:02:29.6]} 15. Kxf1
{[%clk 0:01:42.4]} 15... Nb6 {[%clk 0:02:19.8]} 16. Ne4 {[%clk 0:01:37.7]} 16...
Qh2 {[%clk 0:02:18.6]} 17. Qf3 {[%clk 0:01:34.6]} 17... Qc7 {[%clk 0:02:10.1]}
18. Be6 {[%clk 0:01:32.9]} 18... Rd8 {[%clk 0:02:05.6]} 19. Re1 {[%clk
0:01:25.5]} 19... c4 {[%clk 0:01:54.7]} 20. g5 {[%clk 0:01:22.2]} 20... Rd6
{[%clk 0:01:44.9]} 21. Nxd6+ {[%clk 0:01:21.3]} 21... Qxd6 {[%clk 0:01:45.8]}
22. gxf6 {[%clk 0:01:21.9]} 22... gxf6 {[%clk 0:01:37.3]} 23. Bxf6 {[%clk
0:01:21.6]} 23... Kd8 {[%clk 0:01:03.7]} 24. Bxh8 {[%clk 0:01:20.1]} 24... cxb3
{[%clk 0:01:04.4]} 25. axb3 {[%clk 0:01:19.8]} 25... Bh6 {[%clk 0:01:03.6]} 26.
Be5 {[%clk 0:01:13.4]} 26... Qxd2 {[%clk 0:00:54.5]} 27. Rd1 {[%clk 0:01:13.1]}
1-0

[Event "Early-Titled-Tuesday-Blitz-May-28-2024"]
[Site "Chess.com"]
[Date "2024.05.28"]
[Round "5"]
[White "C_K_G"]
[Black "ImportedItalianMaple"]
[Result "0-1"]
[WhiteElo "2306"]
[BlackElo "2535"]
[TimeControl "180+1"]
[EndTime "8:54:19 PDT"]
[Termination "ImportedItalianMaple won by resignation"]

1. e4 {[%clk 0:02:55.8]} 1... c5 {[%clk 0:03:00.1]} 2. Nf3 {[%clk 0:02:55.2]}
2... a6 {[%clk 0:03:00.5]} 3. d4 {[%clk 0:02:55.8]} 3... cxd4 {[%clk 0:03:01.4]}
4. Nxd4 {[%clk 0:02:56.1]} 4... Nf6 {[%clk 0:03:01.7]} 5. Nc3 {[%clk 0:02:56.5]}
5... e5 {[%clk 0:03:02.3]} 6. Nb3 {[%clk 0:02:54.1]} 6... Bb4 {[%clk 0:03:02.7]}
7. Bd3 {[%clk 0:02:53.8]} 7... d6 {[%clk 0:02:34.3]} 8. Bg5 {[%clk 0:02:46.7]}
8... Bxc3+ {[%clk 0:02:23.6]} 9. bxc3 {[%clk 0:02:45.5]} 9... h6 {[%clk
0:02:20.6]} 10. Bh4 {[%clk 0:02:44.2]} 10... Be6 {[%clk 0:02:17.5]} 11. O-O
{[%clk 0:02:42.2]} 11... g5 {[%clk 0:02:15.6]} 12. Bg3 {[%clk 0:02:41]} 12...
Qc7 {[%clk 0:02:12.8]} 13. Qf3 {[%clk 0:02:11.1]} 13... Nbd7 {[%clk 0:02:12.2]}
14. h4 {[%clk 0:01:57]} 14... Qxc3 {[%clk 0:02:09.5]} 15. hxg5 {[%clk
0:01:51.2]} 15... hxg5 {[%clk 0:02:09.5]} 16. Qe3 {[%clk 0:01:47.3]} 16... Ke7
{[%clk 0:01:54.8]} 17. Qxg5 {[%clk 0:01:31.2]} 17... Rh5 {[%clk 0:01:54]} 18.
Qe3 {[%clk 0:01:30.4]} 18... Rah8 {[%clk 0:01:53.8]} 19. f4 {[%clk 0:01:30.2]}
19... Rh1+ {[%clk 0:01:51.8]} 20. Kf2 {[%clk 0:01:29.9]} 20... Ng4+ {[%clk
0:01:52.4]} 21. Kf3 {[%clk 0:01:28.4]} 21... Rxf1+ {[%clk 0:01:52]} 22. Rxf1
{[%clk 0:01:26.9]} 22... Nxe3 {[%clk 0:01:52.5]} 23. Kxe3 {[%clk 0:01:27.4]}
23... Rg8 {[%clk 0:01:41.3]} 24. Bh4+ {[%clk 0:01:07.7]} 24... f6 {[%clk
0:01:40.4]} 25. fxe5 {[%clk 0:01:07.1]} 25... dxe5 {[%clk 0:01:41.3]} 26. g3
{[%clk 0:00:51]} 26... Rg6 {[%clk 0:01:33]} 0-1

[Event "Early-Titled-Tuesday-Blitz-May-28-2024"]
[Site "Chess.com"]
[Date "2024.05.28"]
[Round "5"]
[White "Larina_Maria"]
[Black "mindprogress732"]
[Result "1-0"]
[WhiteElo "2385"]
[BlackElo "2151"]
[TimeControl "180+1"]
[EndTime "8:54:21 PDT"]
[Termination "Larina_Maria won by resignation"]

1. e4 {[%clk 0:03:00.9]} 1... e6 {[%clk 0:02:32.5]} 2. Nf3 {[%clk 0:02:59.4]}
2... d5 {[%clk 0:02:33.4]} 3. e5 {[%clk 0:02:59.3]} 3... c5 {[%clk 0:02:32.8]}
4. b4 {[%clk 0:02:59.7]} 4... Nc6 {[%clk 0:02:33.1]} 5. b5 {[%clk 0:02:44.8]}
5... Nd4 {[%clk 0:02:32.2]} 6. c3 {[%clk 0:02:40.8]} 6... Nf5 {[%clk 0:02:24]}
7. d4 {[%clk 0:02:35.4]} 7... cxd4 {[%clk 0:02:23.7]} 8. cxd4 {[%clk 0:02:31.6]}
8... Bb4+ {[%clk 0:02:22.6]} 9. Bd2 {[%clk 0:02:31.7]} 9... Qa5 {[%clk
0:02:22.8]} 10. Bd3 {[%clk 0:02:22]} 10... Nge7 {[%clk 0:02:18.7]} 11. a3 {[%clk
0:02:16.1]} 11... Bxd2+ {[%clk 0:02:16]} 12. Nbxd2 {[%clk 0:02:17]} 12... Bd7
{[%clk 0:02:14.3]} 13. Qb3 {[%clk 0:02:08.8]} 13... Rc8 {[%clk 0:02:07.4]} 14.
Qb2 {[%clk 0:01:54.6]} 14... Rc3 {[%clk 0:02:03.6]} 15. Bxf5 {[%clk 0:01:51.8]}
15... Nxf5 {[%clk 0:02:04.5]} 16. a4 {[%clk 0:01:46.9]} 16... O-O {[%clk
0:02:02.4]} 17. O-O {[%clk 0:01:45.4]} 17... Rfc8 {[%clk 0:02:02.6]} 18. Nb3
{[%clk 0:01:34.6]} 18... Qb4 {[%clk 0:01:59.3]} 19. Ra3 {[%clk 0:01:32.1]} 19...
a6 {[%clk 0:01:35.2]} 20. Rb1 {[%clk 0:01:23.8]} 20... Rxf3 {[%clk 0:01:07.3]}
21. gxf3 {[%clk 0:01:21.4]} 21... Rc3 {[%clk 0:01:07.6]} 22. Nc5 {[%clk
0:01:14.4]} 22... Qxb2 {[%clk 0:01:06]} 23. Rxb2 {[%clk 0:01:15.3]} 23... Rxa3
{[%clk 0:01:06]} 24. Nxd7 {[%clk 0:01:14.7]} 24... Nxd4 {[%clk 0:01:06.3]} 25.
bxa6 {[%clk 0:01:09.8]} 25... Nxf3+ {[%clk 0:00:59.7]} 26. Kg2 {[%clk
0:01:09.7]} 26... Nh4+ {[%clk 0:01:00]} 27. Kf1 {[%clk 0:01:09.2]} 27... g5
{[%clk 0:00:55.2]} 28. axb7 {[%clk 0:01:07.1]} 1-0

[Event "Early-Titled-Tuesday-Blitz-May-28-2024"]
[Site "Chess.com"]
[Date "2024.05.28"]
[Round "5"]
[White "JAN2404"]
[Black "KVAIDAN"]
[Result "1-0"]
[WhiteElo "1971"]
[BlackElo "2291"]
[TimeControl "180+1"]
[EndTime "8:54:21 PDT"]
[Termination "JAN2404 won by resignation"]

1. e4 {[%clk 0:03:00.9]} 1... e5 {[%clk 0:02:57.2]} 2. Nc3 {[%clk 0:02:58.6]}
2... Nf6 {[%clk 0:02:53.5]} 3. Bc4 {[%clk 0:02:57.4]} 3... Bb4 {[%clk
0:02:50.8]} 4. Nge2 {[%clk 0:02:47.3]} 4... O-O {[%clk 0:02:38.9]} 5. d3 {[%clk
0:02:45.5]} 5... d5 {[%clk 0:02:38.4]} 6. exd5 {[%clk 0:02:44.1]} 6... Nxd5
{[%clk 0:02:35.4]} 7. O-O {[%clk 0:02:39.8]} 7... Nxc3 {[%clk 0:02:35.3]} 8.
bxc3 {[%clk 0:02:35.7]} 8... Bd6 {[%clk 0:02:34.6]} 9. Ng3 {[%clk 0:02:34]} 9...
Nd7 {[%clk 0:02:22]} 10. f4 {[%clk 0:02:23.2]} 10... Nb6 {[%clk 0:02:12.4]} 11.
Bb3 {[%clk 0:02:15]} 11... a5 {[%clk 0:02:11.7]} 12. fxe5 {[%clk 0:01:58.7]}
12... Bxe5 {[%clk 0:02:09.5]} 13. Qh5 {[%clk 0:01:58.8]} 13... Bf6 {[%clk
0:02:04.1]} 14. a4 {[%clk 0:01:40.7]} 14... Be6 {[%clk 0:01:58.4]} 15. Ne4
{[%clk 0:01:37.8]} 15... Be5 {[%clk 0:01:53.4]} 16. Qxe5 {[%clk 0:01:31.3]}
16... Bxb3 {[%clk 0:01:53.2]} 17. cxb3 {[%clk 0:01:30.2]} 17... Nd5 {[%clk
0:01:52.7]} 18. Bb2 {[%clk 0:01:16.9]} 18... f5 {[%clk 0:01:49.4]} 19. c4 {[%clk
0:01:10.2]} 19... Nf6 {[%clk 0:01:39.3]} 20. Rxf5 {[%clk 0:01:05.8]} 20... Qxd3
{[%clk 0:01:11.7]} 21. Nxf6+ {[%clk 0:01:02.3]} 21... gxf6 {[%clk 0:01:10.8]}
22. Rxf6 {[%clk 0:00:58.3]} 22... Rxf6 {[%clk 0:01:05.5]} 23. Qxf6 {[%clk
0:00:58.3]} 23... Qg6 {[%clk 0:01:04.9]} 24. Qh8+ {[%clk 0:00:57]} 24... Kf7
{[%clk 0:01:04.4]} 25. Rf1+ {[%clk 0:00:54.4]} 1-0